[Event "Titled Tuesday Blitz September 27 Early 2022"]
[White "Player, Edmund C"]
[Black "Hristodoulou, Panagiotis"]
[WhiteFideId "406520"]
[BlackFideId "4214340"]
[WhiteElo "2092"]
[BlackElo "2172"]
[Result "0-1"]
[Round "07"]
[TimeControl "180+1"]
[Date "2022.09.27"]
[WhiteClock "0:00:06"]
[BlackClock "0:00:47"]

1. e4 {[%clk 0:02:58]}  e5 {[%clk 0:02:58]} 2. Nf3 {[%clk 0:02:57]}  Nc6 {[%clk 0:02:59]} 3. Bb5 {[%clk 0:02:57]}  g6 {[%clk 0:02:59]} 4. c3 {[%clk 0:02:56]}  a6 {[%clk 0:02:58]} 5. Ba4 {[%clk 0:02:56]}  Bg7 {[%clk 0:02:58]} 6. d4 {[%clk 0:02:51]}  exd4 {[%clk 0:02:59]} 7. cxd4 {[%clk 0:02:51]}  b5 {[%clk 0:02:59]} 8. Bc2 {[%clk 0:02:41]}  d6 {[%clk 0:02:58]} 9. Nc3 {[%clk 0:02:38]}  Nge7 {[%clk 0:02:56]} 10. Be3 {[%clk 0:02:37]}  Na5 {[%clk 0:02:55]} 11. b3 {[%clk 0:02:19]}  O-O {[%clk 0:02:54]} 12. Qd2 {[%clk 0:02:14]}  Bb7 {[%clk 0:02:52]} 13. O-O {[%clk 0:01:54]}  Rc8 {[%clk 0:02:50]} 14. Rad1 {[%clk 0:01:45]}  Qd7 {[%clk 0:02:45]} 15. d5 {[%clk 0:01:45]}  c5 {[%clk 0:02:44]} 16. Ne2 {[%clk 0:01:25]}  Qd8 {[%clk 0:02:29]} 17. Ng5 {[%clk 0:01:17]}  c4 {[%clk 0:02:22]} 18. Bd4 {[%clk 0:01:14]}  Bxd4 {[%clk 0:02:13]} 19. Nxd4 {[%clk 0:01:09]}  Qc7 {[%clk 0:02:08]} 20. Qf4 {[%clk 0:01:02]}  h6 {[%clk 0:02:04]} 21. Ngf3 {[%clk 0:00:35]}  Kh7 {[%clk 0:02:01]} 22. Qh4 {[%clk 0:00:30]}  cxb3 {[%clk 0:02:00]} 23. axb3 {[%clk 0:00:27]}  Ng8 {[%clk 0:01:54]} 24. Ng5+ {[%clk 0:00:26]}  Kh8 {[%clk 0:01:52]} 25. Rd3 {[%clk 0:00:18]}  Qe7 {[%clk 0:01:51]} 26. Rh3 {[%clk 0:00:16]}  Kg7 {[%clk 0:01:43]} 27. f4 {[%clk 0:00:12]}  Rce8 {[%clk 0:01:31]} 28. f5 {[%clk 0:00:12]}  Qxg5 {[%clk 0:01:25]} 29. f6+ {[%clk 0:00:09]}  Nxf6 {[%clk 0:01:22]} 30. Nf5+ {[%clk 0:00:06]}  gxf5 {[%clk 0:01:21]} 31. Rg3 {[%clk 0:00:06]}  Ng4 {[%clk 0:01:22]} 32. Qxg5+ {[%clk 0:00:01]}  hxg5 {[%clk 0:01:22]} 33. h3 {[%clk 0:00:02]}  Ne3 {[%clk 0:01:20]} 34. Rxg5+ {[%clk 0:00:02]}  Kh6 {[%clk 0:01:20]} 35. Rgxf5 {[%clk 0:00:02]}  Nxf5 {[%clk 0:01:19]} 36. Rxf5 {[%clk 0:00:02]}  Re5 {[%clk 0:01:19]} 37. Rf6+ {[%clk 0:00:03]}  Kg7 {[%clk 0:01:19]} 38. Rxd6 {[%clk 0:00:03]}  Rc8 {[%clk 0:01:18]} 39. Bd1 {[%clk 0:00:03]}  Rxe4 {[%clk 0:01:17]} 40. Bh5 {[%clk 0:00:03]}  Re7 {[%clk 0:01:16]} 41. g4 {[%clk 0:00:03]}  Nxb3 {[%clk 0:01:14]} 42. g5 {[%clk 0:00:03]}  a5 {[%clk 0:00:56]} 43. Bg4 {[%clk 0:00:03]}  Rc1+ {[%clk 0:00:54]} 44. Kg2 {[%clk 0:00:03]}  a4 {[%clk 0:00:55]} 45. Bf5 {[%clk 0:00:03]}  a3 {[%clk 0:00:55]} 46. h4 {[%clk 0:00:03]}  a2 {[%clk 0:00:55]} 47. h5 {[%clk 0:00:04]}  a1=Q {[%clk 0:00:51]} 48. h6+ {[%clk 0:00:05]}  Kf8 {[%clk 0:00:48]} 49. Rd8+ {[%clk 0:00:05]}  Re8 {[%clk 0:00:47]} 50. h7 {[%clk 0:00:06]}  Rxd8 {[%clk 0:00:47]} 51. h8=Q+ {[%clk 0:00:06]}  Qxh8 {[%clk 0:00:47]} 0-1


[Site "https://www.chess.com"]

[Event "Titled Tuesday Blitz September 27 Early 2022"]
[White "Poltorak, Sebastian"]
[Black "Haitin, Ilja"]
[WhiteFideId "1199498"]
[BlackFideId "4501764"]
[WhiteElo "2104"]
[BlackElo "2243"]
[Result "1-0"]
[Round "07"]
[TimeControl "180+1"]
[Date "2022.09.27"]
[WhiteClock "0:01:26"]
[BlackClock "0:00:02"]

1. e4 {[%clk 0:03:00]}  d6 {[%clk 0:02:59]} 2. Nc3 {[%clk 0:02:59]}  e5 {[%clk 0:02:48]} 3. g3 {[%clk 0:02:57]}  g6 {[%clk 0:02:44]} 4. Bg2 {[%clk 0:02:54]}  Bg7 {[%clk 0:02:45]} 5. Nge2 {[%clk 0:02:54]}  Nc6 {[%clk 0:02:45]} 6. O-O {[%clk 0:02:54]}  Nge7 {[%clk 0:02:45]} 7. f4 {[%clk 0:02:54]}  O-O {[%clk 0:02:45]} 8. d3 {[%clk 0:02:47]}  Nd4 {[%clk 0:02:41]} 9. Nxd4 {[%clk 0:02:46]}  exd4 {[%clk 0:02:41]} 10. Ne2 {[%clk 0:02:46]}  f5 {[%clk 0:02:41]} 11. Kh1 {[%clk 0:02:39]}  c5 {[%clk 0:02:33]} 12. Bd2 {[%clk 0:02:38]}  Qc7 {[%clk 0:02:19]} 13. c3 {[%clk 0:02:38]}  Nc6 {[%clk 0:02:16]} 14. Rc1 {[%clk 0:02:38]}  Qe7 {[%clk 0:02:13]} 15. cxd4 {[%clk 0:02:33]}  Nxd4 {[%clk 0:02:11]} 16. Nxd4 {[%clk 0:02:33]}  Bxd4 {[%clk 0:02:10]} 17. Bc3 {[%clk 0:02:33]}  Qg7 {[%clk 0:02:06]} 18. Qb3+ {[%clk 0:02:31]}  Kh8 {[%clk 0:02:04]} 19. Bxd4 {[%clk 0:02:28]}  Qxd4 {[%clk 0:02:05]} 20. Rc4 {[%clk 0:02:28]}  Qg7 {[%clk 0:02:01]} 21. Qc3 {[%clk 0:02:25]}  Be6 {[%clk 0:01:59]} 22. Qxg7+ {[%clk 0:02:25]}  Kxg7 {[%clk 0:02:00]} 23. Rc3 {[%clk 0:02:23]}  Rab8 {[%clk 0:01:55]} 24. b3 {[%clk 0:02:21]}  b6 {[%clk 0:01:53]} 25. Rd1 {[%clk 0:02:20]}  Rbc8 {[%clk 0:01:39]} 26. Kg1 {[%clk 0:02:16]}  Rfd8 {[%clk 0:01:34]} 27. Kf2 {[%clk 0:02:13]}  d5 {[%clk 0:01:25]} 28. e5 {[%clk 0:02:13]}  d4 {[%clk 0:01:24]} 29. Rc2 {[%clk 0:02:13]}  Kf7 {[%clk 0:01:19]} 30. Rdc1 {[%clk 0:02:12]}  Rb8 {[%clk 0:01:12]} 31. Ke2 {[%clk 0:01:51]}  Rd7 {[%clk 0:01:01]} 32. Kd2 {[%clk 0:01:49]}  Ke7 {[%clk 0:01:01]} 33. Rb2 {[%clk 0:01:48]}  a5 {[%clk 0:00:59]} 34. a3 {[%clk 0:01:45]}  Bd5 {[%clk 0:00:28]} 35. Bxd5 {[%clk 0:01:44]}  Rxd5 {[%clk 0:00:29]} 36. b4 {[%clk 0:01:45]}  axb4 {[%clk 0:00:29]} 37. axb4 {[%clk 0:01:46]}  Ra8 {[%clk 0:00:16]} 38. Rc4 {[%clk 0:01:41]}  Ra1 {[%clk 0:00:04]} 39. bxc5 {[%clk 0:01:41]}  Rxc5 {[%clk 0:00:04]} 40. Rxd4 {[%clk 0:01:32]}  b5 {[%clk 0:00:04]} 41. Rdb4 {[%clk 0:01:30]}  Rh1 {[%clk 0:00:03]} 42. Rxb5 {[%clk 0:01:30]}  Rxh2+ {[%clk 0:00:04]} 43. Ke3 {[%clk 0:01:30]}  Rxb2 {[%clk 0:00:03]} 44. Rxb2 {[%clk 0:01:28]}  Rc1 {[%clk 0:00:03]} 45. Rb7+ {[%clk 0:01:26]}  Ke6 {[%clk 0:00:04]} 46. Rb6+ {[%clk 0:01:27]}  Ke7 {[%clk 0:00:03]} 47. Kd4 {[%clk 0:01:26]}  Rg1 {[%clk 0:00:03]} 48. Kd5 {[%clk 0:01:27]}  Rxg3 {[%clk 0:00:03]} 49. Rb7+ {[%clk 0:01:27]}  Kd8 {[%clk 0:00:03]} 50. d4 {[%clk 0:01:27]}  Rd3 {[%clk 0:00:02]} 51. Rxh7 {[%clk 0:01:27]}  Rf3 {[%clk 0:00:02]} 52. Kd6 {[%clk 0:01:26]}  Rxf4 {[%clk 0:00:02]} 53. Rh8# {[%clk 0:01:26]} 1-0


[Site "https://www.chess.com"]

[Event "Titled Tuesday Blitz September 27 Early 2022"]
[White "Reyes, Narquingden"]
[Black "Ravi, Teja S."]
[WhiteFideId "5217334"]
[BlackFideId "5017220"]
[WhiteElo "2633"]
[BlackElo "2772"]
[Result "1/2-1/2"]
[Round "07"]
[TimeControl "180+1"]
[Date "2022.09.27"]
[WhiteClock "0:00:06"]
[BlackClock "0:00:22"]

1. d4 {[%clk 0:03:00]}  d5 {[%clk 0:03:00]} 2. Nf3 {[%clk 0:03:00]}  Nf6 {[%clk 0:02:59]} 3. c3 {[%clk 0:03:00]}  Bf5 {[%clk 0:02:56]} 4. Qb3 {[%clk 0:03:00]}  Qc8 {[%clk 0:02:52]} 5. c4 {[%clk 0:03:00]}  dxc4 {[%clk 0:02:47]} 6. Qxc4 {[%clk 0:02:59]}  c6 {[%clk 0:02:48]} 7. g3 {[%clk 0:02:56]}  e6 {[%clk 0:02:48]} 8. Bg2 {[%clk 0:02:56]}  Nbd7 {[%clk 0:02:49]} 9. O-O {[%clk 0:02:56]}  Be7 {[%clk 0:02:49]} 10. Nc3 {[%clk 0:02:55]}  O-O {[%clk 0:02:50]} 11. Re1 {[%clk 0:02:54]}  Bg6 {[%clk 0:02:46]} 12. e4 {[%clk 0:02:54]}  b5 {[%clk 0:02:47]} 13. Qb3 {[%clk 0:02:53]}  b4 {[%clk 0:02:47]} 14. e5 {[%clk 0:02:52]}  bxc3 {[%clk 0:02:47]} 15. exf6 {[%clk 0:02:52]}  Nxf6 {[%clk 0:02:41]} 16. bxc3 {[%clk 0:02:51]}  Be4 {[%clk 0:02:37]} 17. Bg5 {[%clk 0:02:48]}  Rb8 {[%clk 0:02:32]} 18. Qa4 {[%clk 0:02:47]}  Re8 {[%clk 0:02:05]} 19. Bxf6 {[%clk 0:02:38]}  Bxf3 {[%clk 0:02:06]} 20. Bxf3 {[%clk 0:02:34]}  Bxf6 {[%clk 0:02:06]} 21. Bxc6 {[%clk 0:02:33]}  Re7 {[%clk 0:02:04]} 22. Rab1 {[%clk 0:02:21]}  Rc7 {[%clk 0:01:54]} 23. Rxb8 {[%clk 0:01:38]}  Qxb8 {[%clk 0:01:55]} 24. d5 {[%clk 0:01:35]}  Bxc3 {[%clk 0:01:51]} 25. Re3 {[%clk 0:01:23]}  Qb4 {[%clk 0:01:25]} 26. Qxb4 {[%clk 0:00:46]}  Bxb4 {[%clk 0:01:26]} 27. Rb3 {[%clk 0:00:42]}  a5 {[%clk 0:01:22]} 28. a3 {[%clk 0:00:40]}  Bf8 {[%clk 0:01:13]} 29. a4 {[%clk 0:00:36]}  exd5 {[%clk 0:01:10]} 30. Bxd5 {[%clk 0:00:37]}  Bb4 {[%clk 0:01:10]} 31. Rd3 {[%clk 0:00:32]}  g6 {[%clk 0:01:10]} 32. Kg2 {[%clk 0:00:32]}  Kg7 {[%clk 0:01:10]} 33. h4 {[%clk 0:00:32]}  h5 {[%clk 0:01:10]} 34. Bf3 {[%clk 0:00:30]}  Rc2 {[%clk 0:01:09]} 35. Bd5 {[%clk 0:00:26]}  Rc5 {[%clk 0:01:04]} 36. Bb3 {[%clk 0:00:24]}  Rc7 {[%clk 0:00:59]} 37. Rf3 {[%clk 0:00:21]}  Bd6 {[%clk 0:00:56]} 38. Bd5 {[%clk 0:00:20]}  Be5 {[%clk 0:00:56]} 39. Re3 {[%clk 0:00:19]}  Bd4 {[%clk 0:00:54]} 40. Rd3 {[%clk 0:00:19]}  Bf6 {[%clk 0:00:54]} 41. Bb3 {[%clk 0:00:18]}  Rb7 {[%clk 0:00:54]} 42. f4 {[%clk 0:00:18]}  Rb4 {[%clk 0:00:53]} 43. Kf3 {[%clk 0:00:18]}  Bd4 {[%clk 0:00:53]} 44. Kg2 {[%clk 0:00:17]}  Kf6 {[%clk 0:00:53]} 45. Kf3 {[%clk 0:00:18]}  Ke7 {[%clk 0:00:52]} 46. Kg2 {[%clk 0:00:17]}  f5 {[%clk 0:00:48]} 47. Kf3 {[%clk 0:00:17]}  Kd6 {[%clk 0:00:48]} 48. Bf7 {[%clk 0:00:17]}  Rxa4 {[%clk 0:00:48]} 49. Bxg6 {[%clk 0:00:17]}  Ke6 {[%clk 0:00:48]} 50. Bxh5 {[%clk 0:00:17]}  Rb4 {[%clk 0:00:45]} 51. Be8 {[%clk 0:00:15]}  a4 {[%clk 0:00:46]} 52. h5 {[%clk 0:00:15]}  Ke7 {[%clk 0:00:44]} 53. Bc6 {[%clk 0:00:13]}  Kd6 {[%clk 0:00:43]} 54. Be8 {[%clk 0:00:12]}  Ke7 {[%clk 0:00:39]} 55. Bc6 {[%clk 0:00:12]}  Rb3 {[%clk 0:00:30]} 56. Rxb3 {[%clk 0:00:10]}  axb3 {[%clk 0:00:30]} 57. Ba4 {[%clk 0:00:11]}  b2 {[%clk 0:00:29]} 58. Bc2 {[%clk 0:00:11]}  Kf6 {[%clk 0:00:30]} 59. h6 {[%clk 0:00:08]}  Kg6 {[%clk 0:00:28]} 60. g4 {[%clk 0:00:08]}  Kxh6 {[%clk 0:00:27]} 61. Bxf5 {[%clk 0:00:08]}  Kg7 {[%clk 0:00:26]} 62. Bb1 {[%clk 0:00:08]}  Kf6 {[%clk 0:00:24]} 63. g5+ {[%clk 0:00:09]}  Kg7 {[%clk 0:00:24]} 64. Ke4 {[%clk 0:00:09]}  Bc3 {[%clk 0:00:24]} 65. Kf5 {[%clk 0:00:07]}  Bd2 {[%clk 0:00:25]} 66. Kg4 {[%clk 0:00:07]}  Bc3 {[%clk 0:00:22]} 67. f5 {[%clk 0:00:07]}  Bd4 {[%clk 0:00:23]} 68. Kf4 {[%clk 0:00:06]}  Bc3 {[%clk 0:00:23]} 69. Ke4 {[%clk 0:00:05]}  Bd2 {[%clk 0:00:21]} 70. f6+ {[%clk 0:00:05]}  Kg6 {[%clk 0:00:22]} 71. Ke5+ {[%clk 0:00:02]}  Kxg5 {[%clk 0:00:20]} 72. f7 {[%clk 0:00:03]}  Bc3+ {[%clk 0:00:19]} 73. Ke6 {[%clk 0:00:04]}  Bb4 {[%clk 0:00:19]} 74. Kd7 {[%clk 0:00:04]}  Kf4 {[%clk 0:00:20]} 75. Ke8 {[%clk 0:00:04]}  Ke3 {[%clk 0:00:20]} 76. f8=Q {[%clk 0:00:04]}  Bxf8 {[%clk 0:00:20]} 77. Kxf8 {[%clk 0:00:05]}  Kd2 {[%clk 0:00:21]} 78. Bf5 {[%clk 0:00:05]}  Kc1 {[%clk 0:00:22]} 79. Bg6 {[%clk 0:00:06]}  Kd2 {[%clk 0:00:22]} 80. Bf5 {[%clk 0:00:06]}  Ke3 {[%clk 0:00:22]} 81. Bg6 {[%clk 0:00:06]}  Kf4 {[%clk 0:00:23]} 82. Bb1 {[%clk 0:00:06]}  Ke3 {[%clk 0:00:23]} 83. Bg6 {[%clk 0:00:06]}  Kd2 {[%clk 0:00:23]} 84. Ke7 {[%clk 0:00:06]}  b1=Q {[%clk 0:00:22]} 85. Bxb1 {[%clk 0:00:06]} 1/2-1/2


[Site "https://www.chess.com"]

[Event "Titled Tuesday Blitz September 27 Early 2022"]
[White "Roque Sola, Gisela"]
[Black "Amgalantengis, Enkh-Amgalan"]
[WhiteFideId "5120241"]
[BlackFideId "4903536"]
[WhiteElo "1845"]
[BlackElo "1719"]
[Result "0-1"]
[Round "07"]
[TimeControl "180+1"]
[Date "2022.09.27"]
[WhiteClock "0:00:27"]
[BlackClock "0:02:14"]

1. e4 {[%clk 0:03:00]}  c5 {[%clk 0:02:59]} 2. Nf3 {[%clk 0:03:00]}  d6 {[%clk 0:03:00]} 3. d4 {[%clk 0:03:00]}  cxd4 {[%clk 0:03:00]} 4. Nxd4 {[%clk 0:03:01]}  Nf6 {[%clk 0:03:01]} 5. Nc3 {[%clk 0:03:01]}  a6 {[%clk 0:03:01]} 6. Be2 {[%clk 0:02:59]}  g6 {[%clk 0:02:59]} 7. Be3 {[%clk 0:02:55]}  Bg7 {[%clk 0:02:59]} 8. f3 {[%clk 0:02:54]}  O-O {[%clk 0:02:59]} 9. Qd2 {[%clk 0:02:50]}  b5 {[%clk 0:03:00]} 10. a3 {[%clk 0:02:43]}  Bb7 {[%clk 0:02:57]} 11. O-O {[%clk 0:02:41]}  Nbd7 {[%clk 0:02:57]} 12. Kh1 {[%clk 0:02:40]}  Rc8 {[%clk 0:02:57]} 13. Rad1 {[%clk 0:02:32]}  Nb6 {[%clk 0:02:56]} 14. Bd3 {[%clk 0:02:11]}  Nfd7 {[%clk 0:02:55]} 15. Qf2 {[%clk 0:02:08]}  Ne5 {[%clk 0:02:55]} 16. Ne6 {[%clk 0:02:01]}  fxe6 {[%clk 0:02:49]} 17. Bxb6 {[%clk 0:02:01]}  Qd7 {[%clk 0:02:50]} 18. Qg3 {[%clk 0:01:47]}  Nc4 {[%clk 0:02:45]} 19. Bxc4 {[%clk 0:01:45]}  Rxc4 {[%clk 0:02:46]} 20. e5 {[%clk 0:01:34]}  d5 {[%clk 0:02:46]} 21. Rd4 {[%clk 0:01:28]}  Qc6 {[%clk 0:02:44]} 22. Rxc4 {[%clk 0:01:26]}  bxc4 {[%clk 0:02:45]} 23. Bd4 {[%clk 0:01:25]}  Bc8 {[%clk 0:02:38]} 24. f4 {[%clk 0:01:24]}  Bd7 {[%clk 0:02:38]} 25. Qh4 {[%clk 0:01:21]}  Rf7 {[%clk 0:02:34]} 26. Nd1 {[%clk 0:01:17]}  Qa4 {[%clk 0:02:31]} 27. Ne3 {[%clk 0:01:14]}  Bb5 {[%clk 0:02:28]} 28. Rf3 {[%clk 0:01:07]}  c3 {[%clk 0:02:25]} 29. Bxc3 {[%clk 0:01:05]}  d4 {[%clk 0:02:19]} 30. Rh3 {[%clk 0:00:53]}  h5 {[%clk 0:02:18]} 31. Bb4 {[%clk 0:00:43]}  dxe3 {[%clk 0:02:17]} 32. Rxe3 {[%clk 0:00:44]}  Qxc2 {[%clk 0:02:17]} 33. h3 {[%clk 0:00:41]}  Bc6 {[%clk 0:02:15]} 34. Qg3 {[%clk 0:00:39]}  h4 {[%clk 0:02:15]} 35. Qxg6 {[%clk 0:00:27]}  Qxg6 {[%clk 0:02:14]} 0-1


[Site "https://www.chess.com"]

[Event "Titled Tuesday Blitz September 27 Early 2022"]
[White "Roque Sola, Jose Luis"]
[Black "Carrasco Miranda, Andres"]
[WhiteFideId "5120390"]
[BlackFideId "3405990"]
[WhiteElo "1990"]
[BlackElo "2177"]
[Result "0-1"]
[Round "07"]
[TimeControl "180+1"]
[Date "2022.09.27"]
[WhiteClock "0:00:40"]
[BlackClock "0:01:42"]

1. c4 {[%clk 0:03:00]}  Nf6 {[%clk 0:02:58]} 2. Nc3 {[%clk 0:02:59]}  g6 {[%clk 0:02:55]} 3. Nf3 {[%clk 0:02:59]}  Bg7 {[%clk 0:02:55]} 4. g3 {[%clk 0:02:59]}  O-O {[%clk 0:02:55]} 5. Bg2 {[%clk 0:02:59]}  c5 {[%clk 0:02:55]} 6. O-O {[%clk 0:02:58]}  d5 {[%clk 0:02:56]} 7. cxd5 {[%clk 0:02:58]}  Nxd5 {[%clk 0:02:57]} 8. Nxd5 {[%clk 0:02:45]}  Qxd5 {[%clk 0:02:44]} 9. d3 {[%clk 0:02:42]}  Nc6 {[%clk 0:02:42]} 10. a3 {[%clk 0:02:28]}  Qd7 {[%clk 0:02:36]} 11. Qc2 {[%clk 0:02:22]}  b6 {[%clk 0:02:36]} 12. Bd2 {[%clk 0:02:17]}  Bb7 {[%clk 0:02:34]} 13. Bc3 {[%clk 0:02:17]}  Rac8 {[%clk 0:02:33]} 14. Bxg7 {[%clk 0:02:16]}  Kxg7 {[%clk 0:02:34]} 15. Qc3+ {[%clk 0:02:02]}  Kg8 {[%clk 0:02:33]} 16. h4 {[%clk 0:01:56]}  Nd4 {[%clk 0:02:29]} 17. Nxd4 {[%clk 0:01:41]}  cxd4 {[%clk 0:02:30]} 18. Qb4 {[%clk 0:01:37]}  Bxg2 {[%clk 0:02:29]} 19. Kxg2 {[%clk 0:01:38]}  Rc2 {[%clk 0:02:29]} 20. Rfe1 {[%clk 0:01:34]}  Rfc8 {[%clk 0:02:28]} 21. h5 {[%clk 0:01:20]}  Qd5+ {[%clk 0:02:20]} 22. Kg1 {[%clk 0:01:13]}  Qxh5 {[%clk 0:02:19]} 23. Qxe7 {[%clk 0:01:09]}  Qg4 {[%clk 0:02:08]} 24. Qxa7 {[%clk 0:01:00]}  Rxe2 {[%clk 0:02:05]} 25. Qxb6 {[%clk 0:00:56]}  Rxf2 {[%clk 0:01:56]} 26. Qd6 {[%clk 0:00:40]}  Qf3 {[%clk 0:01:42]} 0-1


[Site "https://www.chess.com"]

[Event "Titled Tuesday Blitz September 27 Early 2022"]
[White "Rosen, Eric"]
[Black "Matt, Fabian"]
[WhiteFideId "2032562"]
[BlackFideId "1623303"]
[WhiteElo "2362"]
[BlackElo "2287"]
[Result "1-0"]
[Round "07"]
[TimeControl "180+1"]
[Date "2022.09.27"]
[WhiteClock "0:01:20"]
[BlackClock "0:00:22"]

1. d4 {[%clk 0:02:51]}  d5 {[%clk 0:02:58]} 2. Bf4 {[%clk 0:02:51]}  Nf6 {[%clk 0:02:54]} 3. e3 {[%clk 0:02:51]}  e6 {[%clk 0:02:54]} 4. Nf3 {[%clk 0:02:51]}  c5 {[%clk 0:02:54]} 5. Nbd2 {[%clk 0:02:50]}  Nc6 {[%clk 0:02:54]} 6. c3 {[%clk 0:02:51]}  cxd4 {[%clk 0:02:54]} 7. exd4 {[%clk 0:02:52]}  Nh5 {[%clk 0:02:55]} 8. Be3 {[%clk 0:02:52]}  Bd6 {[%clk 0:02:55]} 9. Ne5 {[%clk 0:02:52]}  g6 {[%clk 0:02:54]} 10. g4 {[%clk 0:02:52]}  Ng7 {[%clk 0:02:50]} 11. h4 {[%clk 0:02:52]}  h5 {[%clk 0:02:50]} 12. Bg5 {[%clk 0:02:52]}  Be7 {[%clk 0:02:45]} 13. Bb5 {[%clk 0:02:37]}  Bd7 {[%clk 0:02:40]} 14. Bxc6 {[%clk 0:02:34]}  bxc6 {[%clk 0:02:36]} 15. Qf3 {[%clk 0:02:34]}  O-O {[%clk 0:02:25]} 16. Bh6 {[%clk 0:02:24]}  hxg4 {[%clk 0:01:41]} 17. Qxg4 {[%clk 0:02:19]}  Be8 {[%clk 0:01:22]} 18. h5 {[%clk 0:02:12]}  f5 {[%clk 0:01:15]} 19. Qg2 {[%clk 0:01:48]}  g5 {[%clk 0:01:06]} 20. Ng6 {[%clk 0:01:31]}  Bxg6 {[%clk 0:00:39]} 21. hxg6 {[%clk 0:01:31]}  g4 {[%clk 0:00:40]} 22. Qh2 {[%clk 0:01:23]}  Qb8 {[%clk 0:00:22]} 23. Bf4 {[%clk 0:01:20]} 1-0


[Site "https://www.chess.com"]

[Event "Titled Tuesday Blitz September 27 Early 2022"]
[White "Rottenwohrer Suarez, Juan"]
[Black "Cnejev, Vladimir-Alexandru"]
[WhiteFideId "32068182"]
[BlackFideId "1260898"]
[WhiteElo "2132"]
[BlackElo "1983"]
[Result "0-1"]
[Round "07"]
[TimeControl "180+1"]
[Date "2022.09.27"]
[WhiteClock "0:00:01"]
[BlackClock "0:00:14"]

1. d4 {[%clk 0:03:00]}  d5 {[%clk 0:02:59]} 2. c4 {[%clk 0:03:01]}  e6 {[%clk 0:03:00]} 3. Nc3 {[%clk 0:03:00]}  Nf6 {[%clk 0:02:59]} 4. cxd5 {[%clk 0:03:01]}  exd5 {[%clk 0:02:59]} 5. Bg5 {[%clk 0:03:02]}  Be7 {[%clk 0:03:00]} 6. e3 {[%clk 0:03:00]}  c6 {[%clk 0:03:00]} 7. Bd3 {[%clk 0:03:00]}  Nbd7 {[%clk 0:02:59]} 8. Nge2 {[%clk 0:03:01]}  Nh5 {[%clk 0:02:59]} 9. Bxe7 {[%clk 0:02:59]}  Qxe7 {[%clk 0:03:00]} 10. Qc2 {[%clk 0:02:58]}  Nb6 {[%clk 0:02:58]} 11. O-O-O {[%clk 0:02:58]}  Bd7 {[%clk 0:02:50]} 12. Kb1 {[%clk 0:02:59]}  O-O-O {[%clk 0:02:49]} 13. Nc1 {[%clk 0:02:55]}  g6 {[%clk 0:02:45]} 14. Nb3 {[%clk 0:02:56]}  Ng7 {[%clk 0:02:45]} 15. Nc5 {[%clk 0:02:56]}  Bf5 {[%clk 0:02:45]} 16. a4 {[%clk 0:02:47]}  Nc4 {[%clk 0:02:39]} 17. Ka2 {[%clk 0:02:40]}  Rhe8 {[%clk 0:02:36]} 18. b4 {[%clk 0:02:31]}  Bxd3 {[%clk 0:02:33]} 19. Nxd3 {[%clk 0:02:16]}  Ne6 {[%clk 0:02:25]} 20. Rb1 {[%clk 0:02:14]}  Kb8 {[%clk 0:02:22]} 21. Rhc1 {[%clk 0:02:13]}  h5 {[%clk 0:02:16]} 22. Nc5 {[%clk 0:02:12]}  b6 {[%clk 0:02:05]} 23. Nxe6 {[%clk 0:01:59]}  Qxe6 {[%clk 0:02:04]} 24. b5 {[%clk 0:01:53]}  Qd6 {[%clk 0:01:59]} 25. Rb3 {[%clk 0:01:46]}  Rc8 {[%clk 0:01:54]} 26. bxc6 {[%clk 0:01:37]}  Rxc6 {[%clk 0:01:55]} 27. Nb5 {[%clk 0:01:36]}  Qxh2 {[%clk 0:01:47]} 28. Qe2 {[%clk 0:01:08]}  Qxg2 {[%clk 0:01:41]} 29. Na3 {[%clk 0:00:48]}  Rec8 {[%clk 0:01:33]} 30. Rbc3 {[%clk 0:00:31]}  Na5 {[%clk 0:01:25]} 31. Nb5 {[%clk 0:00:16]}  a6 {[%clk 0:00:45]} 32. Rxc6 {[%clk 0:00:15]}  Nxc6 {[%clk 0:00:39]} 33. Nc3 {[%clk 0:00:14]}  Kb7 {[%clk 0:00:38]} 34. Rb1 {[%clk 0:00:08]}  Nxd4 {[%clk 0:00:19]} 35. exd4 {[%clk 0:00:08]}  Rxc3 {[%clk 0:00:19]} 36. Rxb6+ {[%clk 0:00:03]}  Kxb6 {[%clk 0:00:18]} 37. Qb2+ {[%clk 0:00:04]}  Ka7 {[%clk 0:00:18]} 38. Qxc3 {[%clk 0:00:05]}  Qxf2+ {[%clk 0:00:18]} 39. Kb3 {[%clk 0:00:05]}  Qf4 {[%clk 0:00:12]} 40. Qc5+ {[%clk 0:00:04]}  Kb8 {[%clk 0:00:13]} 41. Qf8+ {[%clk 0:00:02]}  Kb7 {[%clk 0:00:12]} 42. Qb4+ {[%clk 0:00:01]}  Kc7 {[%clk 0:00:12]} 43. Qa5+ {[%clk 0:00:02]}  Kb8 {[%clk 0:00:11]} 44. Qb6+ {[%clk 0:00:02]}  Kc8 {[%clk 0:00:11]} 45. Qxa6+ {[%clk 0:00:03]}  Kd7 {[%clk 0:00:11]} 46. Qb7+ {[%clk 0:00:02]}  Ke6 {[%clk 0:00:10]} 47. a5 {[%clk 0:00:02]}  Qe3+ {[%clk 0:00:10]} 48. Ka4 {[%clk 0:00:01]}  Qxd4+ {[%clk 0:00:10]} 49. Kb5 {[%clk 0:00:02]}  Qc4+ {[%clk 0:00:10]} 50. Kb6 {[%clk 0:00:02]}  Qb3+ {[%clk 0:00:10]} 51. Ka6 {[%clk 0:00:02]}  Qxb7+ {[%clk 0:00:10]} 52. Kxb7 {[%clk 0:00:02]}  d4 {[%clk 0:00:10]} 53. a6 {[%clk 0:00:03]}  d3 {[%clk 0:00:11]} 54. a7 {[%clk 0:00:04]}  d2 {[%clk 0:00:12]} 55. a8=Q {[%clk 0:00:04]}  d1=Q {[%clk 0:00:13]} 56. Qe8+ {[%clk 0:00:02]}  Kf6 {[%clk 0:00:13]} 57. Qh8+ {[%clk 0:00:03]}  Ke7 {[%clk 0:00:13]} 58. Qe5+ {[%clk 0:00:03]}  Kf8 {[%clk 0:00:13]} 59. Qh8+ {[%clk 0:00:03]}  Ke7 {[%clk 0:00:14]} 60. Qe5+ {[%clk 0:00:03]}  Kd8 {[%clk 0:00:14]} 61. Qc7+ {[%clk 0:00:01]}  Ke8 {[%clk 0:00:13]} 62. Qe5+ {[%clk 0:00:02]}  Kd7 {[%clk 0:00:14]} 63. Qc7+ {[%clk 0:00:01]}  Ke6 {[%clk 0:00:14]} 64. Qc6+ {[%clk 0:00:01]}  Qd6 {[%clk 0:00:13]} 65. Qc4+ {[%clk 0:00:01]}  Qd5+ {[%clk 0:00:13]} 66. Qxd5+ {[%clk 0:00:01]}  Kxd5 {[%clk 0:00:14]} 0-1


[Site "https://www.chess.com"]